[Event "5th Sharjah Masters 2022"]
[Site "Sharjah"]
[Date "2022.05.24"]
[Round "4.11"]
[White "Aravindh, Chithambaram VR."]
[Black "Martirosyan, Haik M."]
[Result "0-1"]
[ECO "D05"]
[WhiteElo "2606"]
[BlackElo "2652"]
[Annotator "TA"]
[PlyCount "98"]
[EventDate "2022.05.21"]
[EventType "swiss"]
[EventCountry "UAE"]
[SourceTitle "playchess.com"]
[Source "ChessBase"]
[SourceQuality "1"]
[TimeControl "5400+30"]

{[%evp 10,98,18,6,50,43,58,27,28,18,29,20,12,6,0,0,2,7,26,0,10,0,0,0,0,0,0,0,8,0,0,0,0,0,0,-58,-75,-80,0,0,53,52,50,41,49,0,0,0,0,0,0,0,0,0,0,0,0,0,0,0,8,0,0,0,0,0,0,0,0,0,0,0,0,0,-10,-10,0,-25,-8,-48,-48,-75,-72,-87,-82,-229,-202,-335,-334,-312,-271]} 1. d4 {[%emt 0:00:05]} Nf6 {[%emt 0:00:10]} 2. Nf3 {[%emt 0:00:08]} d5 {[%emt 0:00:30]} 3. e3 {[%emt 0:00:18]} e6 {[%emt 0:02:10]} 4. Bd3 {[%emt 0:00:13]} c5 {[%emt 0:01:12]} 5. b3 {[%emt 0:00:12]} Nc6 {[%emt 0:01:19]} 6. O-O {[%emt 0:00:16]} Bd7 {[%emt 0:07:00] D05: Colle System with ...e6.} 7. Bb2 {[%emt 0:00:39]} Rc8 {[%emt 0:00:06]} 8. a3 {[%emt 0:00:46]} cxd4 {[%emt 0:01:19] White has an edge.} 9. exd4 {[%emt 0:00:14]} g6 {[%emt 0:02:35]} 10. Nbd2 {[%emt 0:16:40]} Bg7 {[%emt 0:01:00] [#]} 11. c4 $146 {[%emt 0:00:28]} ({Predecessor:} 11. Re1 O-O 12. Rc1 Re8 13. c4 e5 14. cxd5 Nxd5 15. dxe5 Nf4 16. Bb1 Nxe5 17. Rxc8 Bxc8 18. Nxe5 {½-½ (18) Renard,S (1967)-Barbaut,M (1980) France 2004}) 11... dxc4 {[%emt 0:01:56]} 12. bxc4 {[%emt 0:00:27]} O-O {[%emt 0:00:10]} 13. Re1 {[%emt 0:01:54]} b6 {[%emt 0:06:16]} 14. Rc1 {[%emt 0:21:16]} Ne7 {[%emt 0:04:07]} 15. Ne5 {[%emt 0:03:44]} Bc6 {[%emt 0:01:32]} 16. Ndf3 {[%emt 0:04:52]} Bxf3 {[%emt 0:05:08]} 17. Nxf3 {[%emt 0:04:48]} Nc6 {[%emt 0:01:03]} 18. Bf1 {[%emt 0:05:30]} Qd6 {[%emt 0:13:32]} 19. Qa4 {[%emt 0:10:15]} Qf4 {[%emt 0:12:37]} 20. c5 {[%emt 0:14:26]} Nd5 {[%emt 0:02:58]} 21. Bb5 {[%emt 0:00:53]} Nce7 {[%emt 0:01:17] Pair of Knights!} 22. Bd7 {[%emt 0:04:27]} (22. Qxa7 Ra8 23. Qb7 bxc5 24. Rxc5 Qd6 $17) (22. Ne5 $11) 22... Rc7 $15 {[%emt 0:01:49] And now ...bxc5 would win.} 23. c6 {[%emt 0:00:26]} Nf5 {[%emt 0:04:26]} ({Better is} 23... Nf6 $17) 24. Qb3 $11 {[%emt 0:07:44]} ({Of course not} 24. Rxe6 fxe6 25. Bxe6+ Kh8 26. Bxd5 Nxd4 $1 $17 {[%mdl 512]}) 24... Nf6 {[%emt 0:06:07]} (24... Nxd4 $2 25. Bxd4 Bxd4 26. Rc4 Bxf2+ 27. Kxf2 $18) (24... Bxd4 $2 25. Rc4 $18) (24... Nh4 $11) 25. g3 $36 {[%emt 0:00:13][%mdl 2048] Black is under pressure.} Qd6 {[%emt 0:00:36]} 26. a4 $1 {[%emt 0:00:32]} Rd8 {[%emt 0:06:32] [#]} 27. Ba3 {[%emt 0:01:52]} (27. Rxe6 $1 $14 fxe6 28. Bxe6+ Kh8 29. Ba3 Rxc6 30. Rxc6 Qxc6 31. Ne5 Nxd4 32. Nxc6 Nxb3 33. Nxd8) 27... Qd5 $11 {[%emt 0:00:40]} 28. Qxd5 {[%emt 0:00:08]} Nxd5 {[%emt 0:00:05]} 29. g4 {[%emt 0:00:55]} Nxd4 {[%emt 0:00:18]} 30. Nxd4 {[%emt 0:00:06]} Bxd4 {[%emt 0:00:03]} 31. Bd6 {[%emt 0:00:28]} Rcxd7 {[%emt 0:00:53]} 32. cxd7 {[%emt 0:00:04]} Rxd7 {[%emt 0:00:04]} 33. Rc8+ {[%emt 0:00:55]} Kg7 {[%emt 0:00:02]} 34. Bg3 {[%emt 0:00:25]} g5 {[%emt 0:01:21]} 35. Kg2 {[%emt 0:00:16]} Bc5 {[%emt 0:04:47]} 36. h4 {[%emt 0:00:47]} gxh4 {[%emt 0:00:46]} 37. Bxh4 {[%emt 0:00:05]} Nf4+ {[%emt 0:00:23]} 38. Kf3 {[%emt 0:00:50]} Ng6 {[%emt 0:00:28]} 39. Bg5 {[%emt 0:00:54]} Rd3+ {[%emt 0:01:11]} 40. Be3 {[%emt 0:00:13]} Ra3 {[%emt 0:00:52]} 41. Rc7 {[%emt 0:00:26]} a5 {[%emt 0:03:40]} 42. Rb7 {[%emt 0:00:18]} h6 {[%emt 0:01:08]} 43. Kg3 {[%emt 0:00:47]} Kf6 {[%emt 0:00:29]} ({Don't take} 43... Rxa4 44. Bxc5 bxc5 45. Rxe6 $16) 44. Re2 {[%emt 0:00:52]} Ne5 {[%emt 0:00:39]} 45. Kh4 {[%emt 0:00:40]} Rxa4 {[%emt 0:01:38]} 46. Bxc5 {[%emt 0:00:31]} bxc5 {[%emt 0:00:21]} (46... Rxg4+ $2 47. Kh3 bxc5 {[#]} 48. Rxe5 $1 $18) 47. f3 {[%emt 0:00:30]} (47. Kh3 $17) 47... Nxf3+ $19 {[%emt 0:00:30]} 48. Kh5 {[%emt 0:00:08]} (48. Kg3 {was forced.} Ne5 49. Rb5) 48... Ra1 {[%emt 0:00:38] ( -> ...Rh1+)} 49. g5+ {[%emt 0:00:13]} Nxg5 {[%emt 0:00:22] Weighted Error Value: White=0.16 (very precise) /Black=0.07 (flawless)} ({Stronger than} 49... hxg5 50. Rf2 $11) 0-1

[Event "5th Sharjah Masters 2022"]
[Site "Sharjah"]
[Date "2022.05.24"]
[Round "4.12"]
[White "Sethuraman, S.P."]
[Black "Sargsyan, Shant"]
[Result "1/2-1/2"]
[ECO "C84"]
[WhiteElo "2613"]
[BlackElo "2641"]
[Annotator "TA"]
[PlyCount "39"]
[EventDate "2022.05.21"]
[EventType "swiss"]
[EventCountry "UAE"]
[SourceTitle "playchess.com"]
[Source "ChessBase"]
[SourceQuality "1"]
[TimeControl "5400+30"]

{[%evp 15,39,17,11,11,26,7,25,22,31,30,30,36,21,28,14,11,41,31,35,24,39,18,18,0,2,0]} 1. e4 {[%emt 0:00:20]} e5 {[%emt 0:01:07]} 2. Nf3 {[%emt 0:00:08]} Nc6 {[%emt 0:00:08]} 3. Bb5 {[%emt 0:00:07][%cal Bf1b5,Bb5a4,Ba4b3][%mdl 32]} a6 {[%emt 0:00:26]} 4. Ba4 {[%emt 0:00:07]} Nf6 {[%emt 0:00:06]} 5. O-O {[%emt 0:00:05]} Be7 {[%emt 0:00:21]} 6. d3 {[%emt 0:00:07]} b5 {[%emt 0:00:39]} 7. Bb3 {[%emt 0:00:08]} d6 {[%emt 0:00:06]} 8. c3 {[%emt 0:00:06]} O-O {[%emt 0:00:43]} 9. h3 $1 {[%emt 0:00:06][%mdl 4] is more profitable than 9.Re1 at the moment. C84: Closed Ruy Lopez: Unusual White 6th moves.} Re8 {[%emt 0:02:50]} 10. Re1 {[%emt 0:04:11]} Bf8 {[%emt 0:00:43] [#]} 11. a4 $146 {[%emt 0:02:30] White has an edge.} ({Predecessor:} 11. Nbd2 Na5 12. Bc2 c5 13. Nf1 g6 14. Bg5 h6 15. Bxf6 Qxf6 16. Ne3 Be6 17. Qd2 Nc6 18. Bb3 Bg7 19. Bd5 Rac8 20. a4 Ne7 21. Bb7 Rb8 22. Bxa6 bxa4 23. Rxa4 Bxh3 {0-1 (61) Guerra Tulcan,L (2421)-Granda Zuniga,J (2640) Quito 2012}) 11... Bd7 {[%emt 0:14:18]} 12. Bg5 {[%emt 0:16:47][%cal Bc1g5,Bg5h4,Bh4g3][%mdl 32]} Rb8 {[%emt 0:07:11]} 13. axb5 {[%emt 0:01:48]} axb5 {[%emt 0:00:03]} 14. Nbd2 {[%emt 0:00:40][%cal Bb1d2,Bd2f1,Bf1e3][%mdl 32]} h6 {[%emt 0:01:10]} 15. Bh4 {[%emt 0:02:20]} g6 {[%emt 0:02:31]} (15... g5 $5 {[%cal Rg5h4]} 16. Bg3 b4 $14) 16. Nf1 {[%emt 0:14:20]} Bg7 {[%emt 0:03:57]} 17. Ne3 {[%emt 0:00:28]} Qc8 {[%emt 0:04:05]} 18. Bg3 {[%emt 0:20:17]} Ra8 {[%emt 0:11:34]} 19. Nh4 {[%emt 0:06:04] Hoping for Nxg6.} Ne7 {[%emt 0:04:58]} 20. Rxa8 {[%emt 0:08:00] Weighted Error Value: White=0.07 (flawless) /Black=0.07 (flawless)} 1/2-1/2

[Event "5th Sharjah Masters 2022"]
[Site "Sharjah"]
[Date "2022.05.24"]
[Round "4.13"]
[White "Ter-Sahakyan, Samvel"]
[Black "Yuffa, Daniil"]
[Result "0-1"]
[ECO "B31"]
[WhiteElo "2640"]
[BlackElo "2597"]
[Annotator "TA"]
[PlyCount "132"]
[EventDate "2022.05.21"]
[EventType "swiss"]
[EventCountry "UAE"]
[SourceTitle "playchess.com"]
[Source "ChessBase"]
[SourceQuality "1"]
[TimeControl "5400+30"]

{[%evp 15,132,20,6,10,13,17,6,0,13,0,0,0,0,0,3,2,0,0,0,8,36,24,29,-16,-30,-29,-27,-24,-30,-132,-60,-123,-130,-163,-160,-163,-156,-154,-152,-227,-218,-227,-205,-161,-167,-214,-152,-150,-150,-156,-112,-142,-141,-132,-128,-422,-408,-818,-367,-2010,-2030,-29986,-29987,-29987,-29988,-29988,-29989,-29989,-269,-262,-245,-254,-255,-249,-249,-248,-227,-227,-216,-212,0,-214,0,-203,-207,-224,-205,-225,-223,-213,-224,-255,-172,-331,-305,-458,-422,-452,-245,-308,-308,-439,-396,-6045,-5362,-2246,-1769,-6199,-6199,-2200,-2162,-1557,-1535,-29979,-29980,-29981,-29982,-29982,-29981]} 1. e4 {[%emt 0:00:04]} c5 {[%emt 0:00:12]} 2. Nf3 {[%emt 0:00:06]} Nc6 {[%emt 0:00:06]} 3. Bb5 {[%emt 0:00:04]} g6 {[%emt 0:00:07]} 4. O-O {[%emt 0:02:34]} Bg7 {[%emt 0:00:09]} 5. c3 {[%emt 0:00:11]} e5 {[%emt 0:00:15]} 6. d4 {[%emt 0:02:38]} cxd4 {[%emt 0:00:38]} 7. cxd4 {[%emt 0:00:05]} exd4 {[%emt 0:00:24]} 8. Bf4 {[%emt 0:01:00]} a6 {[%emt 0:00:11]} 9. Ba4 {[%emt 0:01:06] B31: Sicilian: 2...Nc6 3 Bb5 g6.} Nge7 {[%emt 0:00:16] [#]} 10. e5 $146 {[%emt 0:05:48][%mdl 1024] White has compensation.} ({Predecessor:} 10. Bd6 b5 11. Bb3 Bb7 12. Re1 Nc8 13. e5 Nxd6 14. exd6+ Kf8 15. Nbd2 f5 16. Bd5 Na5 17. Bxb7 Nxb7 {1-0 (32) So,W (2778)-Fedoseev,V (2704) Chess.com INT 2022}) 10... O-O {[%emt 0:21:42]} 11. Nbd2 {[%emt 0:00:26] The position is equal.} b5 {[%emt 0:04:59]} 12. Bc2 {[%emt 0:00:32]} Bb7 {[%emt 0:04:53]} 13. Re1 {[%emt 0:23:24]} Nd5 {[%emt 0:16:37]} 14. Bg3 {[%emt 0:05:02]} d6 {[%emt 0:07:31]} 15. exd6 {[%emt 0:10:51]} Ncb4 {[%emt 0:03:09]} 16. Ne4 {[%emt 0:16:15]} Nxc2 {[%emt 0:02:36]} 17. Qxc2 {[%emt 0:01:09]} Rc8 {[%emt 0:03:42]} 18. Qd2 {[%emt 0:10:21]} Re8 {[%emt 0:06:14] Prevents Be5.} 19. Nxd4 {[%emt 0:00:42]} Nb6 {[%emt 0:00:40]} 20. Ng5 {[%emt 0:06:15]} Nc4 {[%emt 0:11:31][%csl LRd2,LRd6]} 21. Qf4 {[%emt 0:01:21]} Qd7 {[%emt 0:01:21]} 22. Rac1 {[%emt 0:10:18]} (22. Nb3 $1 $11) 22... Rxe1+ $17 {[%emt 0:03:03]} 23. Rxe1 {[%emt 0:00:03] [#] And now Re7 would win.} Nxd6 $1 {[%emt 0:00:19][%mdl 512]} 24. h3 {[%emt 0:01:29]} (24. Qxd6 Qxd6) 24... Nc4 {[%emt 0:01:07][%csl LRb2,LRd4]} 25. b3 {[%emt 0:00:29]} Bxd4 {[%emt 0:03:17]} 26. bxc4 {[%emt 0:00:02]} Rxc4 {[%emt 0:00:24] Hoping for ...Bc3.} 27. Ne4 {[%emt 0:00:15]} (27. Kh2 $17) 27... Qd5 $1 $40 {[%emt 0:01:53][%mdl 128] aiming for ...f5. White is in trouble.} 28. Qd6 {[%emt 0:00:57] [#] Nf6+ is the strong threat.} Rc1 $3 {[%emt 0:02:18][%mdl 512]} 29. Rxc1 {[%emt 0:00:52][%cal Oc1c8] Intending Rc8+! and mate.} Qxe4 {[%emt 0:00:03][%csl Gb7][%cal Re4g2] Really sharp!} 30. Kf1 {[%emt 0:00:29]} Qxg2+ {[%emt 0:02:21]} 31. Ke1 {[%emt 0:00:08] White wants to mate with Qd8+.} Qe4+ {[%emt 0:00:33]} 32. Kd2 {[%emt 0:00:07]} h6 {[%emt 0:01:03]} 33. Rc7 {[%emt 0:00:32] [#] Threatens to win with Re7.} b4 $1 {[%emt 0:01:39]} ({Of course not} 33... Bd5 $6 34. Rd7 Bc3+ 35. Kxc3 $11) 34. h4 {[%emt 0:01:09]} a5 {[%emt 0:00:46] Black is much more active.} 35. Qd7 $2 {[%emt 0:00:43][%mdl 8192] [#]} (35. h5 $17) 35... Bd5 $1 {[%emt 0:00:29] This bishop pair is nice.} ({Don't blunder} 35... Bc3+ $2 36. Rxc3 bxc3+ 37. Kxc3 $19) 36. Qd8+ {[%emt 0:00:31]} (36. Rc8+ $142 Kh7 37. Qb5) 36... Kg7 {[%emt 0:00:07]} (36... Kh7 $142 {( -> ...Bc3+)} 37. Qd7 Qf3) 37. Bd6 $2 {[%emt 0:00:20]} (37. Qd6) 37... Kh7 {[%emt 0:00:42]} 38. Rc8 {[%emt 0:00:34]} Bc3+ {[%emt 0:00:31]} 39. Rxc3 {[%emt 0:00:10]} bxc3+ {[%emt 0:00:15]} 40. Kxc3 {[%emt 0:00:04] KQB-KQB} Qc4+ {[%emt 0:00:10]} 41. Kd2 {[%emt 0:00:12]} Qxa2+ $2 {[%emt 0:00:05]} (41... Qd4+ {mates} 42. Ke2 Bc4+ 43. Ke1 Qc3+ 44. Kd1 Bd5 45. Qh8+ Kxh8 46. Be5+ Qxe5 47. Kd2 Bc4 48. Kc2 Qe2+ 49. Kc3 Qd3+ 50. Kb2 Qd2+ 51. Kb1 Bd3+ 52. Ka1 Qc3#) 42. Ke3 {[%emt 0:00:19]} Qb3+ {[%emt 0:00:11]} 43. Kd2 {[%emt 0:00:04]} Qb2+ {[%emt 0:00:29]} 44. Kd3 {[%emt 0:00:08]} Qxf2 {[%emt 0:01:51]} 45. Qxa5 {[%emt 0:00:21]} Be6 {[%emt 0:00:34]} 46. Qd8 {[%emt 0:01:13]} Bf5+ {[%emt 0:00:35]} 47. Kc4 {[%emt 0:00:18]} Be6+ {[%emt 0:00:03]} 48. Kd3 {[%emt 0:00:40]} Bf5+ {[%emt 0:00:02]} 49. Kc4 {[%emt 0:00:04]} Qc2+ {[%emt 0:00:11]} 50. Kd4 {[%emt 0:00:49]} Qd3+ {[%emt 0:00:05]} 51. Kc5 {[%emt 0:00:05]} Qc3+ {[%emt 0:00:28]} 52. Kb6 {[%emt 0:00:10]} Qd4+ {[%emt 0:00:49]} 53. Ka5 {[%emt 0:01:00]} Be6 {[%emt 0:00:36][%cal Og6g5]} 54. Qe7 $2 {[%emt 0:01:07]} (54. Be7 {was forced.} Bd7 55. Qc7) 54... g5 {[%emt 0:01:10]} 55. hxg5 {[%emt 0:00:45]} (55. Bc5 {was necessary.} Qc3+ 56. Kb6) 55... hxg5 {[%emt 0:00:09]} 56. Bc5 {[%emt 0:00:40]} Qd5 {[%emt 0:00:20]} 57. Kb6 {[%emt 0:00:20]} Kg6 {[%emt 0:00:05] Against Qf6+. White must now prevent ...f5.} ({Worse is} 57... Bd7 58. Qf6 $15) 58. Qe8 {[%emt 0:00:49]} (58. Qd6 $142 Qf5 59. Be3) 58... Bd7 {[%emt 0:00:39]} 59. Qe3 {[%emt 0:01:02]} (59. Qg8+ Kf5 60. Qh7+ Kg4 61. Qc2) 59... Qc6+ {[%emt 0:00:12]} 60. Ka7 {[%emt 0:00:04]} Be6 {[%emt 0:00:51]} 61. Qd4 {[%emt 0:00:48]} Bd5 {[%emt 0:00:18][%csl Gd5][%cal Rc6b7]} 62. Qb4 {[%emt 0:00:12] Against Qb7+} f5 {[%emt 0:00:24]} 63. Kb8 {[%emt 0:00:28]} f4 {[%emt 0:00:15]} 64. Be7 {[%emt 0:00:46]} Kf5 {[%emt 0:01:33] Black mates.} 65. Bd8 {[%emt 0:00:26] [#]} Qb7+ $1 {[%emt 0:00:48][%mdl 512]} 66. Qxb7 {[%emt 0:00:05]} Bxb7 {[%emt 0:00:03] Weighted Error Value: White=0.67/Black=0.35} 0-1

[Event "5th Sharjah Masters 2022"]
[Site "Sharjah"]
[Date "2022.05.24"]
[Round "4.14"]
[White "Aziz, Husain"]
[Black "Petrosyan, Manuel"]
[Result "0-1"]
[ECO "D38"]
[WhiteElo "2379"]
[BlackElo "2638"]
[Annotator "TA"]
[PlyCount "110"]
[EventDate "2022.05.21"]
[EventType "swiss"]
[EventCountry "UAE"]
[SourceTitle "playchess.com"]
[Source "ChessBase"]
[SourceQuality "1"]
[TimeControl "5400+30"]

{[%evp 10,110,8,4,31,13,15,9,31,19,38,25,33,15,15,15,9,13,9,10,12,11,10,13,8,12,11,9,18,19,18,17,17,16,17,14,17,17,17,13,17,17,30,17,30,41,36,9,24,14,46,26,22,23,27,0,0,0,0,0,0,0,0,0,0,1,6,7,26,0,0,0,0,0,-6,-36,-36,-36,-36,-36,0,-15,0,0,0,0,0,-947,-6598,-12832,-12831,-12832,-12772,-2664,-2620,-12828,-6441,-12836,-12836,-12835,-12827,-2767,-1890]} 1. d4 {[%emt 0:00:35][%cal Bd2d4,Bd4c5][%mdl 32]} Nf6 {[%emt 0:00:59]} 2. c4 {[%emt 0:01:41]} e6 {[%emt 0:00:31]} 3. Nf3 {[%emt 0:00:10]} d5 {[%emt 0:00:35]} 4. Nc3 {[%emt 0:00:10]} Bb4 {[%emt 0:00:38]} 5. Qb3 {[%emt 0:00:28]} c5 {[%emt 0:00:54]} 6. dxc5 {[%emt 0:00:23]} Nc6 {[%emt 0:00:39] D38: Queen's Gambit Declined: Ragozin Defence (4 Nf3 Bb4).} 7. Bg5 {[%emt 0:00:28]} Qa5 {[%emt 0:00:50]} 8. Bxf6 {[%emt 0:00:52]} dxc4 {[%emt 0:00:16] [#] The position is equal.} 9. Qxc4 {[%emt 0:00:24]} gxf6 {[%emt 0:00:05]} 10. Rc1 {[%emt 0:00:53]} Qxc5 {[%emt 0:00:14]} 11. Qh4 {[%emt 0:01:16]} Ke7 {[%emt 0:00:32]} 12. g3 {[%emt 0:00:43]} Bxc3+ {[%emt 0:00:25]} 13. Rxc3 {[%emt 0:00:25]} Qb4 {[%emt 0:01:25]} 14. Qxb4+ {[%emt 0:02:02]} Nxb4 {[%emt 0:00:05]} 15. a3 {[%emt 0:00:20]} Nd5 {[%emt 0:01:01]} 16. Rc1 {[%emt 0:00:13]} Bd7 {[%emt 0:02:33]} 17. Bg2 {[%emt 0:00:22]} Rac8 {[%emt 0:00:27]} 18. O-O {[%emt 0:00:35]} Rxc1 {[%emt 0:01:46]} 19. Rxc1 {[%emt 0:00:11]} Rc8 {[%emt 0:00:04]} 20. Rxc8 {[%emt 0:00:30]} Bxc8 $11 {[%emt 0:00:04][%mdl 4096] Endgame KBN-KBN} 21. Nd2 {[%emt 0:05:31]} Nb6 {[%emt 0:13:19]} 22. b3 {[%emt 0:17:02] [#]} Na8 $146 {[%emt 0:04:25]} ({Predecessor:} 22... f5 23. Kf1 Nd7 24. e4 fxe4 25. Bxe4 h6 26. Ke2 b6 27. f4 e5 28. Ke3 exf4+ 29. Kxf4 {½-½ (69) Moranda,W (2618)-Donchenko,A (2659) Tornelo INT 2021}) 23. f4 {[%emt 0:07:33]} Nc7 {[%emt 0:00:33]} 24. Kf2 {[%emt 0:00:12]} Nb5 {[%emt 0:02:57]} 25. a4 {[%emt 0:02:23]} Nd6 {[%emt 0:01:11]} 26. a5 {[%emt 0:04:08]} b6 {[%emt 0:05:45]} 27. axb6 {[%emt 0:00:53]} axb6 {[%emt 0:00:04]} 28. Bf3 {[%emt 0:02:11]} e5 {[%emt 0:04:27]} 29. e3 {[%emt 0:06:27]} Bf5 {[%emt 0:12:55]} 30. Bd5 {[%emt 0:03:57]} Be6 {[%emt 0:11:30]} 31. Bc6 {[%emt 0:05:09]} e4 {[%emt 0:05:36]} 32. b4 {[%emt 0:04:45]} f5 {[%emt 0:01:01]} 33. Nb1 {[%emt 0:15:07]} Bd7 {[%emt 0:06:47]} 34. Bd5 {[%emt 0:00:36]} Be6 {[%emt 0:01:25]} 35. Bc6 {[%emt 0:02:45]} Bd7 {[%emt 0:00:14]} 36. Bd5 {[%emt 0:00:11]} Be6 {[%emt 0:09:26]} 37. Nc3 {[%emt 0:00:45]} Kd7 {[%emt 0:00:26]} 38. Ba8 {[%emt 0:00:35]} Nc4 {[%emt 0:03:44]} 39. Nd5 {[%emt 0:00:17]} (39. g4 $5) 39... h6 {[%emt 0:01:05]} 40. Ke2 {[%emt 0:06:47]} b5 {[%emt 0:02:47]} 41. Nf6+ {[%emt 0:00:52]} Ke7 {[%emt 0:04:55]} 42. Nd5+ {[%emt 0:00:46]} Kd6 {[%emt 0:00:08]} 43. Nc3 {[%emt 0:00:13]} Nb6 {[%emt 0:00:18]} 44. Bb7 $1 {[%emt 0:03:33]} ({Not} 44. Nxb5+ $2 Kd7 45. Bxe4 fxe4 $19) 44... Bc4+ {[%emt 0:00:48]} 45. Kf2 {[%emt 0:00:37]} Kc7 {[%emt 0:01:58]} 46. Ba6 {[%emt 0:00:35]} Kc6 {[%emt 0:00:01]} 47. h3 {[%emt 0:07:29]} h5 48. Ne2 $2 {[%emt 0:00:00][%mdl 8192]} (48. Ke1 $11) 48... Bxe2 $19 {[%emt 0:00:24] Black is clearly winning.} 49. Kxe2 {[%emt 0:01:00] KB-KN} Nd5 50. g4 {[%emt 0:00:00]} hxg4 {[%emt 0:01:09]} 51. hxg4 {[%emt 0:00:00]} fxg4 {[%emt 0:00:13][%cal Bf5g4,Bg4g3][%mdl 32] Hoping for ...g3.} 52. Bc8 {[%emt 0:00:26]} Nf6 {[%emt 0:00:26]} 53. Kd2 {[%emt 0:00:55]} Kd5 {[%emt 0:00:36]} 54. Kc3 {[%emt 0:00:30]} g3 {[%emt 0:00:06] ( -> ...g2)} 55. Bh3 {[%emt 0:00:04] [#]} Ng4 $1 {[%emt 0:00:21][%mdl 512] Weighted Error Value: White=0.51/Black=0.04 (flawless)} 0-1

[Event "5th Sharjah Masters 2022"]
[Site "Sharjah"]
[Date "2022.05.24"]
[Round "4.15"]
[White "Abasov, Nijat"]
[Black "Azarov, Sergei"]
[Result "1/2-1/2"]
[ECO "A28"]
[WhiteElo "2635"]
[BlackElo "2588"]
[Annotator "TA"]
[PlyCount "41"]
[EventDate "2022.05.21"]
[EventType "swiss"]
[EventCountry "UAE"]
[SourceTitle "playchess.com"]
[Source "ChessBase"]
[SourceQuality "1"]
[TimeControl "5400+30"]

{[%evp 9,41,-6,4,11,9,3,7,16,13,11,9,9,8,10,4,12,17,10,14,2,42,0,0,0,0,0,0,-7,0,0,0,0,0,-18]} 1. c4 {[%emt 0:02:33]} e5 {[%emt 0:00:53]} 2. Nc3 {[%emt 0:00:10]} Nf6 {[%emt 0:00:13]} 3. Nf3 {[%emt 0:00:10]} Nc6 {[%emt 0:00:15]} 4. e4 {[%emt 0:00:08]} Bb4 {[%emt 0:00:32][%cal Bf8b4,Bb4c5,Bc5b6][%mdl 32]} 5. d3 {[%emt 0:00:44]} d6 {[%emt 0:00:25]} 6. a3 {[%emt 0:00:11] A28: English Opening: Four Knights Variation.} Bc5 {[%emt 0:00:29] Hoping for ...Ng4.} 7. b4 {[%emt 0:00:12]} Bb6 {[%emt 0:00:26]} 8. Be3 {[%emt 0:00:12]} Bg4 {[%emt 0:03:36]} 9. Be2 {[%emt 0:00:18]} Bxf3 {[%emt 0:07:45]} 10. Bxf3 {[%emt 0:00:14]} Nd4 {[%emt 0:00:17]} 11. Na4 {[%emt 0:00:54] [#]} Qd7 $146 {[%emt 0:20:04]} ({Predecessor:} 11... Nxf3+ 12. Qxf3 Bxe3 13. Qxe3 O-O 14. O-O c6 15. d4 exd4 16. Qxd4 Re8 17. f3 Re6 {0-1 (46) Abdusattorov,N (2661)-Giri,A (2761) Chess.com INT 2022}) 12. Nxb6 {[%emt 0:04:57]} Nxf3+ {[%emt 0:00:58]} 13. Qxf3 {[%emt 0:00:12]} axb6 {[%emt 0:00:08]} 14. Bg5 {[%emt 0:11:24]} Qg4 {[%emt 0:03:08]} 15. Bxf6 {[%emt 0:09:40]} Qxf3 {[%emt 0:00:08] The position is equal.} 16. gxf3 {[%emt 0:00:07]} gxf6 $14 {[%emt 0:00:03] KRR-KRR} 17. Rg1 {[%emt 0:00:19]} Ke7 {[%emt 0:01:52]} 18. Kd2 {[%emt 0:01:23]} Ke6 {[%emt 0:02:07]} 19. a4 {[%emt 0:10:07]} Rhg8 {[%emt 0:09:33]} 20. Rg3 {[%emt 0:02:14]} h5 {[%emt 0:03:53]} 21. h4 {[%emt 0:18:08] An interesting draw.  Weighted Error Value: White=0.06 (flawless) /Black=0.04 (flawless)} 1/2-1/2